bitfinex-derivatives/quotes_BTCF0:USTF0_20250411
["timestamp","ask_amount","ask_price","bid_price","bid_amount"]
[1744336136359,0.1881443,80026.0,80025.0,0.03158739]
[1744336136859,0.2202443,80026.0,80025.0,0.03158739]
[1744336137160,0.0625247,80023.0,80010.0,0.0625346]
[1744336137357,0.1250568,80018.0,80017.0,0.3911]
[1744336139565,0.1250568,80018.0,80017.0,0.5161584]
[1744336140167,0.13759639,80018.0,80017.0,0.5161584]
[1744336140571,0.13759639,80018.0,80017.0,0.3911]
[1744336140872,0.49839639,80018.0,80017.0,0.0303]
[1744336143165,0.1250646,80013.0,80012.0,0.1250658]
[1744336143465,0.37333959,80018.0,80011.0,0.041149]
[1744336143466,0.3608,80018.0,80011.0,0.041149]
[1744336143659,0.1250593,80018.0,80017.0,0.1250584]
[1744336143853,0.1493622,80018.0,80017.0,0.1250584]
[1744336144264,0.1493622,80018.0,80017.0,0.1578584]
[1744336144467,0.1493622,80018.0,80017.0,0.1900584]
[1744336144671,0.274419,80018.0,80017.0,0.1900584]
[1744336146765,0.274419,80018.0,80017.0,0.065]
[1744336146963,0.1250693,80010.0,80009.0,0.00018739]
[1744336147575,0.1250771,80005.0,80004.0,0.0312]
[1744336147759,0.1250803,80003.0,80002.0,0.3608]
[1744336147955,0.1250818,80002.0,80001.0,0.0312]
[1744336148164,0.1863818,80002.0,80001.0,0.0312]
[1744336149274,0.1863818,80002.0,80001.0,0.1562834]
[1744336149463,0.1863818,80002.0,80001.0,0.0312]
[1744336149664,0.1250818,80002.0,80001.0,0.1562834]
[1744336149860,0.12525949,80010.0,80009.0,0.1250709]
[1744336150264,0.00018739,80010.0,80009.0,0.1250709]
[1744336150461,0.00018739,80010.0,80009.0,0.1875709]
[1744336151276,0.14954959,80010.0,80009.0,0.1875709]
[1744336151864,0.27461889,80010.0,80009.0,0.0625]
[1744336152065,0.27461889,80010.0,80009.0,0.1875709]
[1744336152370,0.27461889,80010.0,80009.0,0.0325]
[1744336152573,0.125085,80000.0,79999.0,0.03]
[1744336153161,0.125085,80000.0,79999.0,0.1550865]
[1744336154168,0.0318,80001.0,79983.0,0.0625552]
[1744336154362,0.3608,80002.0,79992.0,0.0315]
[1744336154363,0.4858943,79994.0,79992.0,0.0315]
[1744336154876,0.1250943,79994.0,79993.0,0.12528329]
[1744336155378,0.4858943,79994.0,79993.0,0.12528329]
[1744336155574,0.1250943,79994.0,79993.0,0.15738329]
[1744336156977,0.0625462,79996.0,79995.0,0.1250928]
[1744336158972,0.1250943,79994.0,79993.0,0.09483469]
[1744336159375,0.1250943,79994.0,79993.0,0.03228739]
[1744336159574,0.1564943,79994.0,79993.0,0.03228739]
[1744336160878,0.1564943,79994.0,79993.0,0.15738329]
[1744336161279,0.1564943,79994.0,79993.0,0.03228739]
[1744336162385,0.14026222,80010.0,80000.0,0.0625423]
[1744336162595,0.2187251,80002.0,80001.0,0.0328]
[1744336162776,0.1250881,79998.0,79997.0,0.4233448]
[1744336163682,0.1561881,79998.0,79997.0,0.4233448]
[1744336170104,0.1250881,79998.0,79997.0,0.4233448]
[1744336172288,0.1250881,79998.0,79997.0,0.0625448]
[1744336172788,0.1250912,79996.0,79995.0,0.1274463]
[1744336173677,0.1572912,79996.0,79995.0,0.1274463]
[1744336177499,0.1572912,79996.0,79995.0,0.0649]
[1744336179286,0.1572912,79996.0,79995.0,0.1899928]
[1744336180896,0.1572912,79996.0,79995.0,0.0649]
[1744336181399,0.30072935,79996.0,79995.0,0.1899928]
[1744336183601,0.30072935,79996.0,79995.0,0.0649]
[1744336184804,0.1884912,79996.0,79995.0,0.0649]
[1744336186205,0.1884912,79996.0,79995.0,0.0328]
[1744336188608,0.1884912,79996.0,79995.0,0.0632]
[1744336189718,0.1884912,79996.0,79995.0,0.1882928]
[1744336195317,0.1884912,79996.0,79995.0,0.0632]
[1744336195714,0.1884912,79996.0,79995.0,0.1882928]
[1744336197219,0.1884912,79996.0,79995.0,0.0632]
[1744336197621,0.1884912,79996.0,79995.0,0.1882928]
[1744336197917,0.1884912,79996.0,79995.0,0.0328]
[1744336199406,0.1250943,79994.0,79993.0,0.00018739]
[1744336199613,0.1251037,79988.0,79987.0,0.00050008]
[1744336199813,0.4859037,79988.0,79987.0,0.00050008]
[1744336200320,0.4859037,79988.0,79987.0,0.03310008]
[1744336200520,0.5167037,79988.0,79987.0,0.03310008]
[1744336200728,0.5468037,79988.0,79987.0,0.03310008]
[1744336201122,0.1251147,79981.0,79980.0,0.00018752]
[1744336202016,0.1251147,79981.0,79980.0,0.12530372]
[1744336202523,0.1251147,79981.0,79980.0,0.13445524]
[1744336203219,0.1251147,79981.0,79980.0,0.00018752]
[1744336203824,0.1251147,79981.0,79980.0,0.15560372]
[1744336204014,0.1251147,79981.0,79980.0,0.18780372]
[1744336204415,0.1251147,79981.0,79980.0,0.06268752]
[1744336205127,0.1251147,79981.0,79980.0,0.18780372]
[1744336207530,0.1251147,79981.0,79980.0,0.19741225]
[1744336207717,0.1568147,79981.0,79980.0,0.19741225]
[1744336208227,0.1568147,79981.0,79980.0,0.07229605]
[1744336208621,0.1568147,79981.0,79980.0,0.06268752]
[1744336209932,0.1568147,79981.0,79980.0,0.18780372]
[1744336211128,0.1568147,79981.0,79980.0,0.06268752]
[1744336211323,0.5176147,79981.0,79980.0,0.03238752]
[1744336211525,0.5478147,79981.0,79980.0,0.00018752]
[1744336213433,0.5176147,79981.0,79980.0,0.00018752]
[1744336213829,0.1493622,79986.0,79985.0,0.1251084]
[1744336214029,0.1493622,79986.0,79985.0,0.4859084]
[1744336214331,0.2744691,79986.0,79985.0,0.4859084]
[1744336214532,0.1493622,79986.0,79985.0,0.4859084]
[1744336214921,0.2744691,79986.0,79985.0,0.4859084]
[1744336216135,0.1251069,79986.0,79985.0,0.4859084]
[1744336217333,0.06273972,79988.0,79987.0,0.1251053]
[1744336217334,0.12529202,79988.0,79987.0,0.1251053]
[1744336217727,0.11230823,79992.0,79991.0,0.125099]
[1744336218127,0.11230823,79992.0,79991.0,0.375099]
[1744336218536,0.11230823,79992.0,79991.0,0.406399]
[1744336219238,0.11230823,79992.0,79991.0,0.156399]
[1744336219838,0.23740573,79992.0,79991.0,0.0313]
[1744336220040,0.23740573,79992.0,79991.0,0.156399]
[1744336220740,0.1250975,79992.0,79991.0,0.156399]
[1744336221533,0.1250975,79992.0,79991.0,0.0313]
[1744336221741,0.1250975,79992.0,79991.0,0.156399]
[1744336221937,0.1250975,79992.0,79991.0,0.0313]
[1744336223836,0.1561975,79992.0,79991.0,0.0624]
[1744336224440,0.1561975,79992.0,79991.0,0.187499]
[1744336225339,0.5169975,79992.0,79991.0,0.0624]
[1744336227540,0.1561975,79992.0,79991.0,0.548299]
[1744336227744,0.1876448,79994.0,79993.0,0.1250959]
[1744336228048,0.59838405,79999.0,79998.0,0.1250881]
[1744336228736,0.59838405,79999.0,79997.0,0.0969]
[1744336228737,0.1250881,79998.0,79997.0,0.0969]
[1744336228937,0.1559881,79998.0,79997.0,0.0969]
[1744336229334,0.47329575,79999.0,79997.0,0.0969]
[1744336229645,0.11249575,79999.0,79998.0,0.4858881]
[1744336230145,0.11249575,79999.0,79998.0,0.5537881]
[1744336230733,0.00018752,79999.0,79998.0,0.5537881]
[1744336230932,0.12527402,79999.0,79998.0,0.4287]
[1744336231147,0.12527402,79999.0,79998.0,0.5537881]
[1744336232147,0.12527402,79999.0,79998.0,0.4287]
[1744336232646,0.12527402,79999.0,79998.0,0.5537881]
[1744336232946,0.12527402,79999.0,79998.0,0.4287]
[1744336233343,0.12527402,79999.0,79998.0,0.5537881]
[1744336233539,0.00018752,79999.0,79998.0,0.5537881]
[1744336236550,0.12527402,79999.0,79998.0,0.5537881]
[1744336238653,0.00018752,79999.0,79998.0,0.5537881]
[1744336239350,0.12527402,79999.0,79998.0,0.4287]
[1744336239853,0.12527402,79999.0,79998.0,0.5537881]
[1744336240754,0.15727402,79999.0,79998.0,0.5537881]
[1744336241953,0.15727402,79999.0,79998.0,0.1929881]
[1744336242354,0.00018752,79999.0,79998.0,0.1929881]
[1744336242555,0.0625478,79995.0,79991.0,0.47056]
[1744336242749,0.1570975,79994.0,79993.0,0.1250943]
[1744336243455,0.187664,79987.0,79986.0,0.0625531]
[1744336244758,0.1251084,79985.0,79984.0,0.0336]
[1744336244953,0.1251131,79982.0,79981.0,0.2195832]
[1744336245453,0.1251131,79982.0,79981.0,0.3446979]
[1744336246549,0.1251131,79982.0,79981.0,0.2195832]
[1744336248358,0.1251147,79981.0,79980.0,0.00018752]
[1744336248554,0.1924147,79981.0,79980.0,0.00018752]
[1744336248759,0.1924147,79981.0,79980.0,0.12530372]
[1744336252360,0.0673,79981.0,79980.0,0.12530372]
[1744336252654,0.11230823,79991.0,79987.0,0.0625524]
[1744336252862,0.23740723,79991.0,79990.0,0.1251006]
[1744336254355,0.27170723,79991.0,79990.0,0.1251006]
[1744336254558,0.30380723,79991.0,79990.0,0.1251006]
[1744336254759,0.14660823,79991.0,79990.0,0.1251006]
[1744336255255,0.11230823,79991.0,79990.0,0.4859006]
[1744336256365,0.14660823,80002.0,79998.0,0.1250881]
[1744336256570,0.14660823,80002.0,79998.0,0.4858881]
[1744336257057,0.11230823,80002.0,79998.0,0.4858881]
[1744336257950,0.0004,80010.0,80009.0,0.1250709]
[1744336258157,0.22097244,80020.0,80019.0,0.1250553]
[1744336258362,0.10355296,80020.0,80019.0,0.8658553]
[1744336258565,0.10355296,80020.0,80019.0,1.12524278]
[1744336259658,0.10355296,80020.0,80019.0,0.87524278]
[1744336260254,0.1250537,80020.0,80019.0,0.87524278]
[1744336260458,0.125051,80022.0,80021.0,0.1875744]
[1744336260649,0.0342,80023.0,80022.0,0.1250506]
[1744336260854,0.0342,80023.0,80022.0,0.1588506]
[1744336261062,0.0342,80023.0,80022.0,0.1933506]
[1744336261259,0.00018752,80028.0,80027.0,0.1250428]
[1744336261654,0.00018752,80028.0,80027.0,0.1933428]
[1744336262762,0.00018752,80028.0,80027.0,0.3029028]
[1744336264067,0.12522872,80028.0,80027.0,0.1933428]
[1744336264366,0.12522872,80028.0,80027.0,0.1250428]
[1744336265065,0.3608,80069.0,80028.0,0.01876]
[1744336265255,0.27007595,80091.0,80059.0,0.14007483]
[1744336265456,0.4181,80147.0,80132.0,0.3608]
[1744336265663,0.1248002,80183.0,80182.0,0.1247999]
[1744336265866,0.3608,80241.0,80182.0,0.7216]
[1744336266056,0.0639,80259.0,80225.0,0.7216]
[1744336266057,0.4501,80239.0,80225.0,0.7216]
[1744336266259,0.00928003,80240.0,80231.0,0.0623623]
[1744336266558,0.00928003,80240.0,80239.0,0.34020996]
[1744336266559,0.01241913,80240.0,80239.0,0.34020996]
[1744336266756,0.01241913,80240.0,80225.0,0.36088477]
[1744336266757,0.42930117,80240.0,80213.0,0.1247528]
[1744336266957,0.3608,80219.0,80210.0,0.0623787]
[1744336267165,0.3608,80219.0,80214.0,0.1247502]
[1744336267459,0.3608,80219.0,80218.0,0.00018697]
[1744336267664,0.4855435,80219.0,80218.0,0.00018697]
[1744336267867,1.39918297,80219.0,80218.0,0.00018697]
[1744336268162,0.0623732,80218.0,80191.0,0.0223413]
[1744336268369,0.0623647,80229.0,80191.0,0.0223413]
[1744336268370,0.3608,80230.0,80219.0,0.0623714]
[1744336268558,0.3608,80261.0,80229.0,0.3608]
[1744336268863,0.3608,80257.0,80239.0,0.1247124]
[1744336269068,0.11428,80242.0,80239.0,0.3608]
[1744336269361,0.3612,80250.0,80239.0,0.3608]
[1744336269563,0.25000003,80240.0,80239.0,0.3608]
[1744336269767,0.25000003,80240.0,80238.0,0.3608]
[1744336269959,3e-08,80240.0,80239.0,0.1247124]
[1744336270363,0.25000003,80240.0,80238.0,0.3608]
[1744336270569,0.11424,80239.0,80238.0,0.3608]
[1744336271062,0.36424,80239.0,80238.0,0.3608]
[1744336271257,0.1247165,80237.0,80231.0,0.00018697]
[1744336271459,0.72504,80239.0,80231.0,0.00018697]
[1744336271660,0.72504,80239.0,80214.0,0.29260473]
[1744336271661,0.0623686,80224.0,80214.0,0.29260473]
[1744336271855,0.1247653,80205.0,80197.0,0.3608]
[1744336272065,0.47504,80205.0,80182.0,0.3608]
[1744336272261,0.11424,80205.0,80202.0,0.3608]
[1744336272456,0.3608,80229.0,80203.0,0.3608]
[1744336272760,0.20903186,80220.0,80211.0,0.3608]
[1744336272956,0.00018697,80224.0,80211.0,0.3608]
[1744336273263,0.1142,80223.0,80221.0,0.3608]
[1744336273659,0.1142,80223.0,80211.0,0.4231779]
[1744336273660,0.1142,80223.0,80219.0,0.3608]
[1744336273964,0.4231712,80220.0,80211.0,0.3608]
[1744336274165,0.1142,80219.0,80211.0,0.3608]
[1744336274365,0.1247421,80220.0,80211.0,0.3608]
[1744336274567,0.10931948,80240.0,80222.0,0.124738]
[1744336274868,0.1247181,80236.0,80227.0,0.3608]
[1744336275067,1.64301302,80243.0,80227.0,0.3608]
[1744336275269,1.64301302,80243.0,80237.0,0.3608]
[1744336275573,0.11416,80242.0,80236.0,0.3608]
[1744336276071,0.11416,80241.0,80236.0,0.4855162]
[1744336276261,0.11416,80241.0,80236.0,0.3608]
[1744336276672,0.11416,80242.0,80236.0,0.3608]
[1744336276870,0.2388686,80242.0,80236.0,0.3608]
[1744336277270,0.1247096,80241.0,80236.0,0.3608]
[1744336277769,1.47289829,80243.0,80236.0,0.3608]
[1744336278266,0.1247094,80241.0,80236.0,0.3608]
[1744336278468,0.0339,80240.0,80236.0,0.3608]
[1744336278874,0.1247155,80237.0,80236.0,0.3608]
[1744336279271,0.1247217,80233.0,80232.0,0.00018697]
[1744336279465,0.0623595,80235.0,80232.0,0.00018697]
[1744336279669,0.1247217,80233.0,80232.0,0.00018697]
[1744336279864,0.1247217,80233.0,80232.0,0.36098697]
[1744336281476,0.0623577,80238.0,80232.0,0.36098697]
[1744336281669,0.47496,80245.0,80232.0,0.36098697]
[1744336281863,0.1247217,80233.0,80232.0,0.36098697]
[1744336282069,0.0623596,80235.0,80234.0,0.1247202]
[1744336282271,0.00018697,80248.0,80233.0,0.4169]
[1744336282475,0.00018697,80248.0,80247.0,0.8463]
[1744336282677,0.12488537,80248.0,80247.0,0.8463]
[1744336282871,0.12488537,80248.0,80247.0,0.7216]
[1744336283266,0.12488537,80248.0,80240.0,0.3608]
[1744336283267,0.1247093,80241.0,80240.0,0.3608]
[1744336283473,0.1247217,80233.0,80230.0,0.3608]
[1744336283975,0.1247481,80216.0,80215.0,0.3608]
[1744336284370,0.1247575,80210.0,80209.0,0.0329]
[1744336284568,0.062376,80214.0,80199.0,0.3608]
[1744336284569,0.1247668,80204.0,80199.0,0.3608]
[1744336284772,0.1247668,80204.0,80200.0,0.0313]
[1744336285271,0.1247668,80204.0,80195.0,0.00018697]
[1744336285476,0.4855668,80204.0,80195.0,0.00018697]
[1744336285674,0.4855668,80204.0,80203.0,1e-08]
[1744336285876,0.5164668,80204.0,80203.0,1e-08]
[1744336286073,0.1247793,80196.0,80195.0,0.00018697]
[1744336286266,0.4855793,80196.0,80195.0,0.00018697]
[1744336286472,0.1248042,80180.0,80172.0,0.57179423]
[1744336286673,0.1248042,80180.0,80173.0,0.0313]
[1744336286876,0.1248151,80173.0,80172.0,0.21099423]
[1744336287778,0.1248275,80165.0,80164.0,0.0001871]
[1744336289266,0.1563275,80165.0,80164.0,0.0001871]
[1744336289879,0.22404805,80168.0,80164.0,0.0001871]
[1744336290078,0.1248275,80165.0,80164.0,0.0001871]
[1744336290783,0.1248275,80165.0,80164.0,0.0321871]
[1744336291480,0.3608,80185.0,80164.0,0.2821871]
[1744336291679,0.0623969,80187.0,80180.0,0.1248042]
[1744336291880,0.1248119,80175.0,80174.0,0.0308]
[1744336292186,0.10758032,80191.0,80175.0,0.1248104]
[1744336292372,0.1248119,80175.0,80174.0,0.0308]
[1744336292682,0.0624001,80183.0,80176.0,0.1248098]
[1744336292882,0.1248098,80177.0,80176.0,0.1248098]
[1744336293778,0.1248119,80175.0,80174.0,0.0308]
[1744336293981,0.1248119,80175.0,80174.0,0.17416419]
[1744336294375,0.1248119,80175.0,80174.0,0.19053558]
[1744336294779,0.1248075,80178.0,80177.0,0.1248067]
[1744336294978,0.1248075,80178.0,80177.0,0.05025069]
[1744336295291,0.1248075,80178.0,80177.0,0.06662208]
[1744336295987,0.1248075,80178.0,80177.0,0.08125214]
[1744336297187,0.0552998,80182.0,80177.0,0.607089]
[1744336297384,0.1248057,80179.0,80178.0,0.01855069]
[1744336297585,0.1248057,80179.0,80178.0,0.08015173]
[1744336298477,0.1248057,80179.0,80178.0,0.06552208]
[1744336300288,0.1248057,80179.0,80178.0,0.04697139]
[1744336301182,0.1248057,80179.0,80178.0,0.06461002]
[1744336301387,0.1248057,80179.0,80178.0,0.06500413]
[1744336303284,0.1248057,80179.0,80178.0,0.03440413]
[1744336303490,0.1248197,80170.0,80169.0,0.0329]
[1744336303881,0.1248275,80165.0,80160.0,0.3608]
[1744336304083,0.1248275,80165.0,80161.0,0.0329]
[1744336304383,0.1248275,80165.0,80164.0,0.56762535]
[1744336304584,0.1248275,80165.0,80164.0,0.0001871]
[1744336304991,0.1248275,80165.0,80164.0,0.0306871]
[1744336305193,0.124818,80173.0,80172.0,0.1872204]
[1744336305385,0.1248116,80177.0,80176.0,0.1248072]
[1744336305585,0.12,80184.0,80176.0,0.3608]
[1744336305783,0.244801,80184.0,80183.0,0.3608]
[1744336306089,0.1248088,80178.0,80177.0,0.1248077]
[1744336306277,0.1248088,80178.0,80177.0,0.17273654]
[1744336307896,0.005,87800.0,80177.0,0.20613654]
[1744336308097,0.005,87800.0,80178.0,0.01742884]
[1744336308395,0.1248057,80179.0,80178.0,0.1248073]
[1744336308599,0.1248057,80179.0,80178.0,0.08166251]
[1744336309290,0.1248057,80179.0,80178.0,0.20647912]
[1744336310290,0.0624,80183.0,80178.0,0.20647912]
[1744336310488,0.0001871,80187.0,80179.0,0.01757182]
[1744336310688,0.0624019,80181.0,80180.0,0.01751929]
[1744336311492,0.1248057,80179.0,80178.0,0.0641]
[1744336311898,0.1248057,80179.0,80178.0,0.58952258]
[1744336313098,0.0498418,80184.0,80178.0,0.58952258]
[1744336313399,0.1248057,80179.0,80178.0,0.57238957]
[1744336313601,0.1248057,80179.0,80178.0,0.58938777]
[1744336314192,0.1248057,80179.0,80178.0,0.60327831]
[1744336314902,0.1248057,80179.0,80178.0,0.45750575]
[1744336315097,0.1248057,80179.0,80178.0,0.56842251]
[1744336315294,0.0001871,80187.0,80186.0,0.1247948]
[1744336315494,0.0001871,80187.0,80186.0,0.50287822]
[1744336315698,0.0001871,80187.0,80186.0,0.53437822]
[1744336316005,0.0001871,80187.0,80186.0,0.56412212]
[1744336316914,0.0623742,80216.0,80201.0,0.1247715]
[1744336317111,0.1834519,80219.0,80201.0,0.5192815]
[1744336317306,0.1247645,80208.0,80207.0,0.1247608]
[1744336317617,0.1247579,80210.0,80209.0,0.1247575]
[1744336317803,0.1247579,80210.0,80209.0,0.5192675]
[1744336318009,0.1247579,80210.0,80209.0,0.39451]
[1744336318407,0.0623758,80214.0,80213.0,0.1247504]
[1744336318720,0.06235,80247.0,80224.0,0.1247357]
[1744336318906,0.1247026,80247.0,80246.0,0.1246991]
[1744336319105,0.0623496,80248.0,80247.0,0.1247]
[1744336319310,0.0623369,80264.0,80249.0,0.1246968]
[1744336319510,0.1247843,80258.0,80249.0,0.55925533]
[1744336319714,0.0001,80258.0,80257.0,0.1246844]
[1744336319911,0.0001,80258.0,80257.0,0.15876951]
[1744336320214,0.0623254,80279.0,80257.0,0.39488511]
[1744336320411,0.1246829,80258.0,80257.0,0.3608]
[1744336320611,0.1246829,80258.0,80257.0,0.01763827]
[1744336320815,0.1246829,80258.0,80257.0,7e-08]
[1744336321012,0.1246829,80258.0,80257.0,0.01667636]
[1744336321318,0.1246829,80258.0,80257.0,6e-08]
[1744336321615,0.1247093,80241.0,80240.0,0.4169]
[1744336321802,0.1247093,80241.0,80239.0,0.3608]
[1744336321803,0.1247108,80240.0,80239.0,0.4855124]
[1744336322008,0.1247108,80240.0,80239.0,0.3608]
[1744336322411,0.0623535,80243.0,80242.0,0.1247077]
[1744336322604,0.00018659,80248.0,80239.0,0.3608]
[1744336322816,0.1247108,80240.0,80239.0,0.4855124]
[1744336323210,0.1247108,80240.0,80239.0,0.3608]
[1744336323716,0.1247108,80240.0,80239.0,0.4855124]
[1744336324014,0.1247108,80240.0,80239.0,0.3608]
[1744336324211,0.1247108,80240.0,80239.0,0.4855124]
[1744336324416,0.1247108,80240.0,80239.0,0.3608]
[1744336324902,0.124708,80242.0,80241.0,0.1247062]
[1744336325103,0.1247108,80240.0,80239.0,0.3608]
[1744336325504,0.1247108,80240.0,80239.0,0.4855124]
[1744336326104,0.0623501,80247.0,80239.0,0.4855124]
[1744336326105,0.06231406,80247.0,80239.0,0.4855124]
[1744336326315,0.1247108,80240.0,80239.0,0.4855124]
[1744336326513,0.0623507,80246.0,80239.0,0.4855124]
[1744336326514,0.1247102,80242.0,80241.0,0.1247074]
[1744336327212,0.1247077,80242.0,80241.0,0.4792541]
[1744336327419,0.1247077,80242.0,80241.0,0.4169]
[1744336327810,0.1870595,80244.0,80243.0,0.1247062]
[1744336328012,0.1247077,80242.0,80241.0,0.5416071]
[1744336329018,0.1247059,80245.0,80244.0,0.1247031]
[1744336329322,0.1870539,80246.0,80245.0,0.0316]
[1744336329521,0.1870539,80246.0,80245.0,0.1563031]
[1744336329722,0.1870539,80246.0,80245.0,0.0316]
[1744336330030,0.00018659,80248.0,80245.0,0.3924]
[1744336330321,0.00018659,80248.0,80247.0,0.1247]
[1744336330517,0.12488499,80248.0,80247.0,0.1247]
[1744336331818,0.00018659,80248.0,80247.0,0.3747]
[1744336332027,0.0099514,80267.0,80247.0,0.3747]
[1744336332028,0.1246762,80263.0,80262.0,0.1246741]
[1744336332218,0.1346203,80267.0,80266.0,0.1246704]
[1744336332415,0.124672,80265.0,80264.0,0.0623367]
[1744336333212,0.3608,80299.0,80270.0,0.062332]
[1744336333420,0.1246448,80283.0,80282.0,0.1246419]
[1744336333718,0.0623208,80285.0,80284.0,0.1246425]
[1744336334116,0.10986967,80300.0,80285.0,0.0623204]
[1744336334315,0.3608,80325.0,80285.0,0.0623204]
[1744336334316,0.3608,80325.0,80299.0,0.0623093]
[1744336334522,0.3608,80325.0,80321.0,0.1245851]
[1744336334822,0.3608,80325.0,80321.0,0.4169]
[1744336334823,0.23525317,80322.0,80321.0,0.4169]
[1744336335015,0.23525317,80322.0,80321.0,0.3514594]
[1744336335215,0.23525317,80322.0,80302.0,0.00018685]
[1744336335216,0.0004,80322.0,80313.0,0.3608]
[1744336335415,0.1246052,80308.0,80307.0,0.3608]
[1744336336124,0.1246052,80308.0,80302.0,0.00018685]
[1744336336125,0.124613,80303.0,80302.0,0.00018685]
[1744336336321,0.0639,80307.0,80302.0,0.00018685]
[1744336336518,0.0316,80307.0,80302.0,0.00018685]
[1744336336718,0.1246113,80305.0,80302.0,0.06249395]
[1744336337025,0.1246114,80304.0,80303.0,0.0623]
[1744336337616,0.1246114,80304.0,80302.0,0.00018685]
[1744336337617,0.124613,80303.0,80302.0,0.00018685]
[1744336337818,0.188513,80303.0,80302.0,0.00018685]
[1744336338013,0.188513,80303.0,80284.0,0.3608]
[1744336338014,0.0623103,80299.0,80284.0,0.3608]
[1744336338221,0.1246409,80285.0,80284.0,0.4854425]
[1744336338826,0.1246409,80285.0,80284.0,0.3608]
[1744336339226,0.1246409,80285.0,80284.0,0.3914]
[1744336339426,0.0945179,80289.0,80285.0,0.0623204]
[1744336339624,0.17258497,80292.0,80285.0,0.031]
[1744336339831,0.17258497,80292.0,80291.0,0.3608]
[1744336340029,0.17258497,80292.0,80291.0,0.7122594]
[1744336340929,0.00018644,80293.0,80292.0,0.1246301]
[1744336341132,0.12481524,80293.0,80292.0,0.1860301]
[1744336341433,0.00018644,80293.0,80292.0,0.1860301]
[1744336341935,0.11696,80309.0,80305.0,0.124609]
[1744336342230,0.0316,80310.0,80306.0,0.0328]
[1744336342536,0.3608,80334.0,80321.0,0.1245851]
[1744336342731,0.3608,80368.0,80323.0,0.9743679]
[1744336342927,0.11066967,80370.0,80358.0,0.3608]
[1744336343133,0.01047178,80370.0,80359.0,0.4150594]
[1744336343324,0.11066967,80370.0,80361.0,0.0622615]
[1744336343630,0.11066967,80370.0,80360.0,0.3514594]
[1744336343835,0.0004,80370.0,80369.0,0.3608]
[1744336344336,0.0004,80370.0,80369.0,0.4853107]
[1744336344527,0.23517877,80370.0,80369.0,0.3608]
[1744336345626,0.1245231,80361.0,80360.0,0.0328]
[1744336346027,0.1245262,80359.0,80358.0,0.3608]
[1744336346537,0.1245293,80357.0,80345.0,0.0316]
[1744336346736,0.032,80358.0,80330.0,0.3608]
[1744336346928,0.0622745,80345.0,80330.0,0.3608]
[1744336347125,0.3608,80346.0,80332.0,0.1245675]
[1744336347126,0.1245632,80336.0,80332.0,0.1245675]
[1744336347332,0.1245635,80335.0,80333.0,0.0316]
[1744336347540,0.1576598,80338.0,80333.0,0.0316]
[1744336347740,0.0331,80338.0,80333.0,0.0316]
[1744336347938,0.1245649,80334.0,80333.0,0.0316]
[1744336348137,0.0622813,80336.0,80327.0,0.00018674]
[1744336348138,0.1245742,80328.0,80327.0,0.00018674]
[1744336348644,0.23484387,80328.0,80327.0,0.00018674]
[1744336348837,0.11026967,80328.0,80327.0,0.00018674]
[1744336349033,0.1245742,80328.0,80327.0,0.00018674]
[1744336349444,0.23484387,80328.0,80327.0,0.00018674]
[1744336349636,0.0622808,80337.0,80328.0,0.1245731]
[1744336349940,0.124568,80332.0,80331.0,0.3608]
[1744336351241,0.0331,80336.0,80334.0,0.1245642]
[1744336351543,0.12208,80337.0,80335.0,0.1548634]
[1744336351744,0.1245618,80336.0,80335.0,0.0303]
[1744336352136,0.0313,80345.0,80335.0,0.0303]
[1744336352342,0.0935744,80345.0,80340.0,0.3608]
[1744336352537,0.48288,80346.0,80341.0,0.0303]
[1744336352739,0.1245525,80342.0,80341.0,0.154854]
[1744336352939,0.12208,80346.0,80343.0,0.124551]
[1744336353143,0.1245345,80354.0,80343.0,0.124551]
[1744336353344,0.0622629,80360.0,80343.0,0.124551]
[1744336353345,0.0622597,80364.0,80343.0,0.4760104]
[1744336353547,0.0622597,80364.0,80343.0,0.6317594]
[1744336353748,0.0622597,80364.0,80361.0,0.1245219]
[1744336353941,0.0004,80370.0,80362.0,0.3911]
[1744336354142,0.0004,80370.0,80369.0,0.3608]
[1744336354449,0.1249091,80370.0,80369.0,0.3608]
[1744336354646,0.12452,80363.0,80362.0,0.0303]
[1744336355047,0.23478967,80363.0,80362.0,0.0303]
[1744336355747,0.1245215,80362.0,80361.0,0.00018674]
[1744336355951,0.1893215,80362.0,80361.0,0.00018674]
[1744336356151,0.1577215,80362.0,80361.0,0.00018674]
[1744336356449,0.1577215,80362.0,80361.0,0.36098674]
[1744336356851,0.1245215,80362.0,80361.0,0.36098674]
[1744336357553,0.1245215,80362.0,80361.0,0.00018674]
[1744336357852,0.23479117,80362.0,80361.0,0.00018674]
[1744336358053,0.26539117,80362.0,80361.0,0.00018674]
[1744336358842,0.62619117,80362.0,80361.0,0.00018674]
[1744336359246,0.1245339,80354.0,80353.0,0.3608]
[1744336359461,0.1245479,80345.0,80344.0,0.0301]
[1744336359651,0.1245479,80345.0,80344.0,0.1546494]
[1744336359848,0.0312,80353.0,80352.0,0.124537]
[1744336360151,0.14146967,80353.0,80352.0,0.485337]
[1744336360338,0.26600517,80353.0,80352.0,0.3608]
[1744336360548,0.1245315,80356.0,80355.0,0.1245324]
[1744336360845,0.1245339,80354.0,80353.0,0.0325]
[1744336361147,0.124531,80356.0,80353.0,0.0286]
[1744336361352,0.124531,80356.0,80355.0,0.1245311]
[1744336362252,0.1245339,80354.0,80353.0,0.0908674]
[1744336362652,0.1245315,80356.0,80355.0,0.1245308]
[1744336362853,0.1245324,80355.0,80354.0,0.3608]
[1744336363240,0.15590984,80361.0,80360.0,0.1245246]
[1744336363441,0.00018674,80361.0,80360.0,0.1245246]
[1744336363854,0.12470984,80361.0,80360.0,0.1245246]
[1744336364056,0.1245262,80359.0,80358.0,0.0622632]
[1744336364248,0.00018674,80361.0,80360.0,0.1245246]
[1744336364556,0.00018674,80361.0,80360.0,0.836784]
[1744336364848,0.12470984,80361.0,80360.0,0.7122594]
[1744336366155,0.23497951,80361.0,80360.0,0.3514594]
[1744336366741,0.0622645,80358.0,80354.0,0.25053033]
[1744336366948,0.1245448,80347.0,80346.0,0.0312]
[1744336367961,0.1567448,80347.0,80346.0,0.0312]
[1744336369150,0.1567448,80347.0,80339.0,0.031]
[1744336369151,0.1245479,80345.0,80339.0,0.031]
[1744336369350,0.1245479,80345.0,80340.0,0.0319]
[1744336369854,0.1245479,80345.0,80344.0,0.00018674]
[1744336373451,0.1564479,80345.0,80344.0,0.00018674]
[1744336373659,0.1888479,80345.0,80344.0,0.00018674]
[1744336374557,0.00196228,80345.0,80344.0,0.00018674]
[1744336374760,0.12651018,80345.0,80344.0,0.00018674]
[1744336374952,0.1245479,80345.0,80344.0,0.00018674]
[1744336378460,0.1477479,80345.0,80344.0,0.00018674]